[Event "Live Chess"]
[Site "Chess.com"]
[Date "2024.06.01"]
[Round "-"]
[White "AlexanderMatlak"]
[Black "NeilDruggan73"]
[Result "1-0"]
[WhiteElo "2394"]
[BlackElo "1745"]
[TimeControl "300"]
[EndTime "15:42:12 PDT"]
[Termination "AlexanderMatlak won by resignation"]

1. e4 {[%clk 0:04:56]} 1... d6 {[%clk 0:04:57.9]} 2. d4 {[%clk 0:04:54.5]} 2...
Nf6 {[%clk 0:04:55.8]} 3. Nc3 {[%clk 0:04:53.8]} 3... g6 {[%clk 0:04:54.7]} 4.
Bc4 {[%clk 0:04:50.4]} 4... Nxe4 {[%clk 0:04:50.7]} 5. Bxf7+ {[%clk 0:04:42.8]}
5... Kxf7 {[%clk 0:04:49.5]} 6. Nxe4 {[%clk 0:04:42.7]} 6... h6 {[%clk
0:04:40.9]} 7. Nf3 {[%clk 0:04:39.4]} 7... Bg7 {[%clk 0:04:38.9]} 8. c3 {[%clk
0:04:38.6]} 8... Rf8 {[%clk 0:04:37.7]} 9. Qb3+ {[%clk 0:04:36.4]} 9... d5
{[%clk 0:04:34.4]} 10. Ne5+ {[%clk 0:04:21]} 10... Bxe5 {[%clk 0:04:25.6]} 11.
dxe5 {[%clk 0:04:20.9]} 11... Kg7 {[%clk 0:04:23.7]} 12. Ng3 {[%clk 0:04:10.6]}
12... e6 {[%clk 0:04:21.3]} 13. O-O {[%clk 0:04:08.5]} 13... b6 {[%clk 0:04:16]}
14. Be3 {[%clk 0:04:02.1]} 14... c5 {[%clk 0:04:14.6]} 15. Rad1 {[%clk
0:03:55.5]} 15... Bb7 {[%clk 0:04:12.9]} 16. Qc2 {[%clk 0:03:40.4]} 16... Kh7
{[%clk 0:04:05.3]} 17. Qd2 {[%clk 0:03:38.8]} 17... Qh4 {[%clk 0:03:51.8]} 18.
b4 {[%clk 0:03:28.5]} 18... Nd7 {[%clk 0:03:46.8]} 19. a4 {[%clk 0:03:25.7]}
19... Nxe5 {[%clk 0:03:43.4]} 20. bxc5 {[%clk 0:03:22.4]} 20... Ng4 {[%clk
0:03:39.9]} 21. h3 {[%clk 0:03:21.8]} 21... Nxe3 {[%clk 0:03:38.3]} 22. Qxe3
{[%clk 0:03:21.7]} 22... Rae8 {[%clk 0:03:34.1]} 23. cxb6 {[%clk 0:03:18.7]}
23... axb6 {[%clk 0:03:31.8]} 24. Qxb6 {[%clk 0:03:18.2]} 24... Ba8 {[%clk
0:03:30.2]} 25. a5 {[%clk 0:03:03.8]} 25... Qg5 {[%clk 0:03:27.4]} 26. Qe3
{[%clk 0:02:49]} 26... Qxe3 {[%clk 0:03:05.6]} 27. fxe3 {[%clk 0:02:48.9]} 27...
Kg7 {[%clk 0:02:53.2]} 28. Ne2 {[%clk 0:02:45.3]} 28... Rf6 {[%clk 0:02:44.5]}
29. a6 {[%clk 0:02:30.1]} 29... Ref8 {[%clk 0:02:42.9]} 30. Rxf6 {[%clk
0:02:23.8]} 30... Rxf6 {[%clk 0:02:38.4]} 31. Rb1 {[%clk 0:02:22.7]} 31... Rf7
{[%clk 0:02:33.5]} 32. Rb6 {[%clk 0:02:08.2]} 32... Kf6 {[%clk 0:02:28.9]} 33.
Nd4 {[%clk 0:02:00.5]} 33... Re7 {[%clk 0:02:27.5]} 34. Nb5 {[%clk 0:01:57.9]}
34... Ke5 {[%clk 0:02:24.7]} 35. a7 {[%clk 0:01:56]} 35... Ke4 {[%clk
0:02:18.6]} 36. Kf2 {[%clk 0:01:50.1]} 36... Rf7+ {[%clk 0:02:09.2]} 37. Ke2
{[%clk 0:01:47.9]} 37... Rd7 {[%clk 0:01:42.1]} 38. Rb8 {[%clk 0:01:41.7]} 38...
Bc6 {[%clk 0:01:38.1]} 39. a8=Q {[%clk 0:01:27.8]} 39... Bxa8 {[%clk 0:01:36.6]}
40. Rxa8 {[%clk 0:01:27.7]} 40... Rb7 {[%clk 0:01:35.2]} 41. Nd6+ {[%clk
0:01:26.7]} 1-0

[Event "Live Chess"]
[Site "Chess.com"]
[Date "2024.06.01"]
[Round "-"]
[White "Queensandpawns"]
[Black "JanMur7"]
[Result "0-1"]
[WhiteElo "2342"]
[BlackElo "2307"]
[TimeControl "300"]
[EndTime "15:42:45 PDT"]
[Termination "JanMur7 won by checkmate"]

1. e4 {[%clk 0:04:55.7]} 1... e5 {[%clk 0:04:59.3]} 2. d4 {[%clk 0:04:54.4]}
2... exd4 {[%clk 0:04:58.1]} 3. c3 {[%clk 0:04:54.3]} 3... d5 {[%clk 0:04:56.7]}
4. e5 {[%clk 0:04:50.3]} 4... c5 {[%clk 0:04:48.6]} 5. cxd4 {[%clk 0:04:47.7]}
5... cxd4 {[%clk 0:04:48.5]} 6. Nf3 {[%clk 0:04:47.5]} 6... Nc6 {[%clk
0:04:47.6]} 7. Bd3 {[%clk 0:04:45.2]} 7... Bb4+ {[%clk 0:04:44.6]} 8. Bd2 {[%clk
0:04:43.8]} 8... Bxd2+ {[%clk 0:04:43.1]} 9. Nbxd2 {[%clk 0:04:43.7]} 9... Nge7
{[%clk 0:04:42.5]} 10. O-O {[%clk 0:04:41.5]} 10... O-O {[%clk 0:04:36.6]} 11.
a3 {[%clk 0:04:39.5]} 11... Ng6 {[%clk 0:04:33.6]} 12. Re1 {[%clk 0:04:37.3]}
12... Re8 {[%clk 0:04:32.4]} 13. Qc2 {[%clk 0:04:32.6]} 13... Be6 {[%clk
0:04:19.4]} 14. h4 {[%clk 0:04:29.6]} 14... Rc8 {[%clk 0:04:13]} 15. h5 {[%clk
0:04:17.8]} 15... Nb4 {[%clk 0:04:10.9]} 16. Qb1 {[%clk 0:04:10.4]} 16... Nxd3
{[%clk 0:04:07.3]} 17. Qxd3 {[%clk 0:04:10.3]} 17... Nf4 {[%clk 0:03:57.3]} 18.
Qxd4 {[%clk 0:04:09.4]} 18... Nxh5 {[%clk 0:03:56.8]} 19. g4 {[%clk 0:03:58.9]}
19... Bxg4 {[%clk 0:03:08.6]} 20. Qxg4 {[%clk 0:03:58.8]} 20... g6 {[%clk
0:03:08.1]} 21. e6 {[%clk 0:03:56.1]} 21... f5 {[%clk 0:02:56.7]} 22. Qd4 {[%clk
0:03:51]} 22... Rc6 {[%clk 0:02:52.7]} 23. e7 {[%clk 0:03:35.7]} 23... Rxe7
{[%clk 0:02:30]} 24. Rxe7 {[%clk 0:03:35.6]} 24... Qxe7 {[%clk 0:02:29.4]} 25.
Qxd5+ {[%clk 0:03:35.2]} 25... Kg7 {[%clk 0:02:28.9]} 26. Qe5+ {[%clk
0:03:32.5]} 26... Qxe5 {[%clk 0:02:26.6]} 27. Nxe5 {[%clk 0:03:32.4]} 27... Rc2
{[%clk 0:02:25.5]} 28. Ndc4 {[%clk 0:03:02.6]} 28... b5 {[%clk 0:02:21.6]} 29.
Nd6 {[%clk 0:03:02.2]} 29... Rxb2 {[%clk 0:02:18.9]} 30. Nc6 {[%clk 0:02:55]}
30... a6 {[%clk 0:01:59]} 31. Nb8 {[%clk 0:02:47.4]} 31... Nf4 {[%clk
0:01:44.3]} 32. Nxa6 {[%clk 0:02:26]} 32... Nh3+ {[%clk 0:01:42.8]} 33. Kg2
{[%clk 0:02:25.9]} 33... Nxf2 {[%clk 0:01:41.9]} 34. Kf3 {[%clk 0:02:23.6]}
34... Nd3 {[%clk 0:01:24.3]} 35. Ke3 {[%clk 0:02:12.1]} 35... Ne5 {[%clk
0:01:19.9]} 36. Nb4 {[%clk 0:02:09.4]} 36... Ng4+ {[%clk 0:01:02.8]} 37. Kf4
{[%clk 0:02:06.6]} 37... Rf2+ {[%clk 0:00:59.9]} 38. Kg3 {[%clk 0:02:05.7]}
38... h5 {[%clk 0:00:56.8]} 39. Nxb5 {[%clk 0:01:38.7]} 39... f4+ {[%clk
0:00:50.5]} 40. Kh4 {[%clk 0:01:38.2]} 40... Kh6 {[%clk 0:00:47]} 41. Rh1 {[%clk
0:01:29.6]} 41... Rf3 {[%clk 0:00:46]} 42. Nd4 {[%clk 0:01:11.5]} 42... g5#
{[%clk 0:00:44.3]} 0-1

[Event "Live Chess"]
[Site "Chess.com"]
[Date "2024.06.01"]
[Round "-"]
[White "updatedopenings2024"]
[Black "NottheBishopSacrifice"]
[Result "1-0"]
[WhiteElo "1990"]
[BlackElo "2297"]
[TimeControl "300"]
[EndTime "15:42:52 PDT"]
[Termination "updatedopenings2024 won by resignation"]

1. e4 {[%clk 0:04:59.2]} 1... c6 {[%clk 0:04:58.2]} 2. d4 {[%clk 0:04:57.6]}
2... d5 {[%clk 0:04:58.1]} 3. e5 {[%clk 0:04:57]} 3... c5 {[%clk 0:04:56.5]} 4.
dxc5 {[%clk 0:04:56.9]} 4... e6 {[%clk 0:04:55.4]} 5. a3 {[%clk 0:04:55.5]} 5...
Bxc5 {[%clk 0:04:54.9]} 6. Nf3 {[%clk 0:04:55.4]} 6... f6 {[%clk 0:04:53.4]} 7.
Bd3 {[%clk 0:04:51.8]} 7... Nc6 {[%clk 0:04:51.7]} 8. Qe2 {[%clk 0:04:50]} 8...
fxe5 {[%clk 0:04:50.2]} 9. Nxe5 {[%clk 0:04:49.9]} 9... Nf6 {[%clk 0:04:49.4]}
10. b4 {[%clk 0:04:47.3]} 10... Bd6 {[%clk 0:04:47.9]} 11. Bb2 {[%clk
0:04:46.6]} 11... O-O {[%clk 0:04:45.6]} 12. O-O {[%clk 0:04:45.3]} 12... Qc7
{[%clk 0:04:43.9]} 13. f4 {[%clk 0:04:44.2]} 13... Bd7 {[%clk 0:04:38.6]} 14.
Nd2 {[%clk 0:04:43.6]} 14... Rae8 {[%clk 0:04:36.6]} 15. c4 {[%clk 0:04:42.6]}
15... Bc8 {[%clk 0:04:31.5]} 16. c5 {[%clk 0:04:41.5]} 16... Be7 {[%clk
0:04:30]} 17. g4 {[%clk 0:04:38.5]} 17... b6 {[%clk 0:04:25.4]} 18. g5 {[%clk
0:04:33.9]} 18... Ne4 {[%clk 0:04:23.5]} 19. Nxe4 {[%clk 0:04:32.6]} 19... dxe4
{[%clk 0:04:20.9]} 20. Qxe4 {[%clk 0:04:32.5]} 20... Rf5 {[%clk 0:04:20]} 21.
Qxc6 {[%clk 0:04:28.2]} 21... Qd8 {[%clk 0:04:03.4]} 22. Bxf5 {[%clk 0:04:24.2]}
22... exf5 {[%clk 0:04:03.3]} 23. Rad1 {[%clk 0:04:22.4]} 1-0

[Event "Live Chess"]
[Site "Chess.com"]
[Date "2024.06.01"]
[Round "-"]
[White "Crowded_House"]
[Black "McFim"]
[Result "1-0"]
[WhiteElo "1729"]
[BlackElo "1634"]
[TimeControl "300"]
[EndTime "15:42:58 PDT"]
[Termination "Crowded_House won on time"]

1. d4 {[%clk 0:04:57.8]} 1... d5 {[%clk 0:04:58.4]} 2. Bg5 {[%clk 0:04:57]} 2...
Nf6 {[%clk 0:04:54.4]} 3. e3 {[%clk 0:04:55.8]} 3... e6 {[%clk 0:04:52.9]} 4.
Bd3 {[%clk 0:04:53.5]} 4... Be7 {[%clk 0:04:51.8]} 5. Nf3 {[%clk 0:04:51.7]}
5... h6 {[%clk 0:04:50.7]} 6. Bh4 {[%clk 0:04:50.4]} 6... Nbd7 {[%clk
0:04:49.1]} 7. Nbd2 {[%clk 0:04:48.4]} 7... b6 {[%clk 0:04:48.2]} 8. c3 {[%clk
0:04:46.6]} 8... Bb7 {[%clk 0:04:47.3]} 9. Qc2 {[%clk 0:04:45.6]} 9... c5 {[%clk
0:04:45.5]} 10. b3 {[%clk 0:04:39.7]} 10... Rc8 {[%clk 0:04:43.9]} 11. Qb2
{[%clk 0:04:37.9]} 11... O-O {[%clk 0:04:32.9]} 12. O-O {[%clk 0:04:36.5]} 12...
a6 {[%clk 0:04:24.5]} 13. Bg3 {[%clk 0:04:22.7]} 13... b5 {[%clk 0:04:21.4]} 14.
a3 {[%clk 0:04:19]} 14... Ba8 {[%clk 0:04:16.7]} 15. Ne5 {[%clk 0:04:13.8]}
15... Nb6 {[%clk 0:04:00.1]} 16. c4 {[%clk 0:04:01.1]} 16... cxd4 {[%clk
0:03:55.5]} 17. Qxd4 {[%clk 0:03:52]} 17... Bc5 {[%clk 0:03:50.3]} 18. Qb2
{[%clk 0:03:50.3]} 18... bxc4 {[%clk 0:03:46.4]} 19. bxc4 {[%clk 0:03:47.8]}
19... dxc4 {[%clk 0:03:22.4]} 20. Nexc4 {[%clk 0:03:35.8]} 20... Na4 {[%clk
0:03:11.6]} 21. Qb3 {[%clk 0:03:22.4]} 21... Ba7 {[%clk 0:02:18.9]} 22. Be2
{[%clk 0:03:12.8]} 22... Nc5 {[%clk 0:02:17.4]} 23. Qd1 {[%clk 0:02:52.3]} 23...
Nce4 {[%clk 0:02:14.2]} 24. Bf3 {[%clk 0:02:34.1]} 24... Nxg3 {[%clk 0:02:01.6]}
25. hxg3 {[%clk 0:02:31.2]} 25... Bxf3 {[%clk 0:01:55.1]} 26. Qxf3 {[%clk
0:02:24.1]} 26... Qd5 {[%clk 0:01:34.4]} 27. Rfc1 {[%clk 0:01:51.2]} 27... Rfd8
{[%clk 0:01:29.4]} 28. Qxd5 {[%clk 0:01:48]} 28... Rxd5 {[%clk 0:01:14.6]} 29.
Nf3 {[%clk 0:01:46]} 29... Rdc5 {[%clk 0:01:11.4]} 30. Nfd2 {[%clk 0:01:39.3]}
30... Bb8 {[%clk 0:01:02.3]} 31. Ra2 {[%clk 0:01:27]} 31... Ne4 {[%clk
0:00:42.8]} 32. Nxe4 {[%clk 0:01:17.8]} 32... Rxc4 {[%clk 0:00:41.3]} 33. Rxc4
{[%clk 0:01:16.4]} 33... Rxc4 {[%clk 0:00:40.6]} 34. Nd2 {[%clk 0:01:10.6]}
34... Rc1+ {[%clk 0:00:36.4]} 35. Kh2 {[%clk 0:01:06.8]} 35... Bd6 {[%clk
0:00:23.5]} 36. a4 {[%clk 0:01:00]} 36... Bb4 {[%clk 0:00:17.6]} 37. Ne4 {[%clk
0:00:50]} 37... Rb1 {[%clk 0:00:15.9]} 38. Kh3 {[%clk 0:00:41.8]} 38... a5
{[%clk 0:00:15.2]} 39. Kg4 {[%clk 0:00:39.8]} 39... f5+ {[%clk 0:00:14]} 40. Kf3
{[%clk 0:00:38.5]} 40... fxe4+ {[%clk 0:00:13.9]} 41. Kxe4 {[%clk 0:00:38.4]}
41... Kf7 {[%clk 0:00:11.7]} 42. f3 {[%clk 0:00:36.1]} 42... Kf6 {[%clk
0:00:10.8]} 43. g4 {[%clk 0:00:34.4]} 43... g5 {[%clk 0:00:09.4]} 44. f4 {[%clk
0:00:32.9]} 44... gxf4 {[%clk 0:00:08.2]} 45. exf4 {[%clk 0:00:31.9]} 45... Re1+
{[%clk 0:00:07.4]} 46. Kf3 {[%clk 0:00:30.2]} 46... Rc1 {[%clk 0:00:04.4]} 47.
Kg3 {[%clk 0:00:27.7]} 47... Rc3+ {[%clk 0:00:03]} 48. Kf2 {[%clk 0:00:26.1]}
48... Ra3 {[%clk 0:00:02.2]} 49. Rxa3 {[%clk 0:00:23.3]} 49... Bxa3 {[%clk
0:00:01.4]} 50. Kf3 {[%clk 0:00:22.5]} 50... Bb4 {[%clk 0:00:00.5]} 51. Ke4
{[%clk 0:00:21.3]} 1-0

[Event "Live Chess"]
[Site "Chess.com"]
[Date "2024.06.01"]
[Round "-"]
[White "hapehansen"]
[Black "booktrunk"]
[Result "1-0"]
[WhiteElo "2259"]
[BlackElo "1471"]
[TimeControl "300"]
[EndTime "15:43:21 PDT"]
[Termination "hapehansen won by resignation"]

1. Nf3 {[%clk 0:04:54.7]} 1... b6 {[%clk 0:04:59.9]} 2. e4 {[%clk 0:04:52.5]}
2... Bb7 {[%clk 0:04:58.8]} 3. Nc3 {[%clk 0:04:51.8]} 3... e6 {[%clk 0:04:56.5]}
4. d4 {[%clk 0:04:51.2]} 4... Nf6 {[%clk 0:04:54.3]} 5. Bd3 {[%clk 0:04:46]}
5... Bb4 {[%clk 0:04:51.6]} 6. Qe2 {[%clk 0:04:43.2]} 6... h6 {[%clk 0:04:49.5]}
7. O-O {[%clk 0:04:40.2]} 7... O-O {[%clk 0:04:48]} 8. e5 {[%clk 0:04:34.1]}
8... Nh7 {[%clk 0:04:41.7]} 9. Ne4 {[%clk 0:04:27.1]} 9... d5 {[%clk 0:04:28.9]}
10. Ng3 {[%clk 0:04:17.5]} 10... Be7 {[%clk 0:04:25.9]} 11. Nh5 {[%clk
0:04:08.4]} 11... Ng5 {[%clk 0:04:21.7]} 12. Nxg5 {[%clk 0:04:01.6]} 12... Bxg5
{[%clk 0:04:19.4]} 13. f4 {[%clk 0:03:59.1]} 13... Be7 {[%clk 0:04:10.1]} 14.
Qg4 {[%clk 0:03:54]} 14... g5 {[%clk 0:03:58.7]} 15. fxg5 {[%clk 0:03:46]} 15...
Bxg5 {[%clk 0:03:56.7]} 16. Nf6+ {[%clk 0:03:43.4]} 16... Kg7 {[%clk 0:03:51.7]}
17. Bxg5 {[%clk 0:03:41.1]} 17... Kh8 {[%clk 0:03:39.6]} 18. Bxh6 {[%clk
0:03:34]} 18... Rg8 {[%clk 0:03:36.1]} 19. Bg7+ {[%clk 0:03:26.3]} 19... Rxg7
{[%clk 0:03:33.8]} 20. Qh5+ {[%clk 0:03:24.6]} 1-0

[Event "Live Chess"]
[Site "Chess.com"]
[Date "2024.06.01"]
[Round "-"]
[White "Yegorych"]
[Black "KeithArkell"]
[Result "0-1"]
[WhiteElo "1580"]
[BlackElo "2411"]
[TimeControl "300"]
[EndTime "15:43:25 PDT"]
[Termination "KeithArkell won by resignation"]

1. d3 {[%clk 0:04:54.4]} 1... d5 {[%clk 0:04:58.3]} 2. Nf3 {[%clk 0:04:50.1]}
2... c5 {[%clk 0:04:57.4]} 3. Bf4 {[%clk 0:04:42.9]} 3... Nc6 {[%clk 0:04:56.4]}
4. c3 {[%clk 0:04:39.4]} 4... g6 {[%clk 0:04:55.3]} 5. Nbd2 {[%clk 0:04:32]}
5... Bg7 {[%clk 0:04:54.5]} 6. e4 {[%clk 0:04:17.6]} 6... Bg4 {[%clk 0:04:46.9]}
7. Be2 {[%clk 0:04:15]} 7... Nf6 {[%clk 0:04:39.3]} 8. Ng5 {[%clk 0:04:02]} 8...
Bxe2 {[%clk 0:04:35.5]} 9. Qxe2 {[%clk 0:03:59.9]} 9... e6 {[%clk 0:04:29.8]}
10. O-O {[%clk 0:03:55.3]} 10... O-O {[%clk 0:04:28.3]} 11. Be5 {[%clk
0:03:35.7]} 11... Nxe5 {[%clk 0:04:26.3]} 0-1

[Event "Live Chess"]
[Site "Chess.com"]
[Date "2024.06.01"]
[Round "-"]
[White "DoctorMantisTobogganMD"]
[Black "SvitlanaJ"]
[Result "1-0"]
[WhiteElo "2177"]
[BlackElo "593"]
[TimeControl "300"]
[EndTime "15:43:34 PDT"]
[Termination "DoctorMantisTobogganMD won by checkmate"]

1. e4 {[%clk 0:04:58.9]} 1... e5 {[%clk 0:04:57.8]} 2. Nc3 {[%clk 0:04:57.4]}
2... Nc6 {[%clk 0:04:54.9]} 3. Bc4 {[%clk 0:04:53.6]} 3... Bc5 {[%clk
0:04:50.6]} 4. Qg4 {[%clk 0:04:51.4]} 4... Nf6 {[%clk 0:04:41.4]} 5. Qxg7 {[%clk
0:04:49.5]} 5... Qe7 {[%clk 0:04:19.9]} 6. Qxh8+ {[%clk 0:04:46]} 6... Qf8
{[%clk 0:04:13]} 7. Qxf6 {[%clk 0:04:43.7]} 7... Qg8 {[%clk 0:03:52.7]} 8. g3
{[%clk 0:04:33.4]} 8... Nd4 {[%clk 0:03:31.9]} 9. Qxe5+ {[%clk 0:04:29.2]} 9...
Kd8 {[%clk 0:03:24.7]} 10. Qxc5 {[%clk 0:04:25.5]} 10... Nxc2+ {[%clk
0:03:22.7]} 11. Kd1 {[%clk 0:04:24.2]} 11... Nxa1 {[%clk 0:03:20.9]} 12. Nd5
{[%clk 0:04:22.8]} 12... Qg4+ {[%clk 0:03:10.5]} 13. f3 {[%clk 0:04:21.1]} 13...
Qg7 {[%clk 0:02:52.4]} 14. Qe7# {[%clk 0:04:17.2]} 1-0

[Event "Live Chess"]
[Site "Chess.com"]
[Date "2024.06.01"]
[Round "-"]
[White "CCGoodKnightRookie"]
[Black "AndrewBak1"]
[Result "1-0"]
[WhiteElo "2327"]
[BlackElo "1866"]
[TimeControl "300"]
[EndTime "15:43:39 PDT"]
[Termination "CCGoodKnightRookie won by resignation"]

1. d4 {[%clk 0:04:59.4]} 1... d5 {[%clk 0:04:57.1]} 2. Nc3 {[%clk 0:04:58.8]}
2... Nf6 {[%clk 0:04:55.7]} 3. Bf4 {[%clk 0:04:58.1]} 3... a6 {[%clk 0:04:53.9]}
4. e3 {[%clk 0:04:57.5]} 4... c5 {[%clk 0:04:53.2]} 5. Nf3 {[%clk 0:04:55]} 5...
Nc6 {[%clk 0:04:52.5]} 6. a3 {[%clk 0:04:52.5]} 6... Bg4 {[%clk 0:04:51.1]} 7.
Be2 {[%clk 0:04:50.7]} 7... e6 {[%clk 0:04:49.2]} 8. Ne5 {[%clk 0:04:49.2]} 8...
Bxe2 {[%clk 0:04:47.6]} 9. Qxe2 {[%clk 0:04:48.9]} 9... cxd4 {[%clk 0:04:43.5]}
10. Nxc6 {[%clk 0:04:47.4]} 10... bxc6 {[%clk 0:04:43.4]} 11. exd4 {[%clk
0:04:47.1]} 11... Bd6 {[%clk 0:04:42.3]} 12. Be5 {[%clk 0:04:45.6]} 12... Bxe5
{[%clk 0:04:39.5]} 13. Qxe5 {[%clk 0:04:45.5]} 13... Qb8 {[%clk 0:04:33]} 14.
Qxb8+ {[%clk 0:04:42.2]} 14... Rxb8 {[%clk 0:04:32.9]} 15. b4 {[%clk 0:04:41.5]}
15... O-O {[%clk 0:04:09.4]} 16. Na4 {[%clk 0:04:37.9]} 16... Ne4 {[%clk
0:04:05.8]} 17. f3 {[%clk 0:04:35.6]} 17... Nd6 {[%clk 0:04:04.4]} 18. Nc5
{[%clk 0:04:35]} 18... Ra8 {[%clk 0:03:55.6]} 19. Kf2 {[%clk 0:04:30.5]} 19...
a5 {[%clk 0:03:53.3]} 20. Rhb1 {[%clk 0:04:22.9]} 20... a4 {[%clk 0:03:44.9]}
21. Ke3 {[%clk 0:04:05.8]} 21... Nc4+ {[%clk 0:03:41]} 22. Kd3 {[%clk
0:04:04.3]} 22... Rfb8 {[%clk 0:03:36]} 23. Nd7 {[%clk 0:03:59.7]} 23... Rb7
{[%clk 0:03:33.4]} 24. Ne5 {[%clk 0:03:59]} 24... Nxe5+ {[%clk 0:03:27.3]} 25.
dxe5 {[%clk 0:03:58.9]} 25... f6 {[%clk 0:03:17.9]} 26. exf6 {[%clk 0:03:51]}
26... gxf6 {[%clk 0:03:17.8]} 27. c4 {[%clk 0:03:50.3]} 27... e5 {[%clk
0:03:11.4]} 28. b5 {[%clk 0:03:47.9]} 28... Rab8 {[%clk 0:02:27.7]} 29. bxc6
{[%clk 0:03:44.5]} 29... dxc4+ {[%clk 0:02:22.2]} 30. Ke4 {[%clk 0:03:37.3]}
30... Rxb1 {[%clk 0:02:11.1]} 31. Rxb1 {[%clk 0:03:34.9]} 31... Rc8 {[%clk
0:02:07.3]} 32. Kd5 {[%clk 0:03:33.8]} 32... c3 {[%clk 0:02:05.2]} 33. Kd6
{[%clk 0:03:28.8]} 33... Kf7 {[%clk 0:01:51.2]} 34. Kd7 {[%clk 0:03:25.8]} 34...
Rb8 {[%clk 0:01:43.6]} 35. Rc1 {[%clk 0:03:22.6]} 1-0

[Event "Live Chess"]
[Site "Chess.com"]
[Date "2024.06.01"]
[Round "-"]
[White "upoe610"]
[Black "NebodarMatevich"]
[Result "1-0"]
[WhiteElo "2206"]
[BlackElo "1576"]
[TimeControl "300"]
[EndTime "15:43:44 PDT"]
[Termination "upoe610 won by resignation"]

1. c4 {[%clk 0:04:56]} 1... Nf6 {[%clk 0:04:58.9]} 2. g3 {[%clk 0:04:54.9]} 2...
g6 {[%clk 0:04:58]} 3. Bg2 {[%clk 0:04:54.2]} 3... Bg7 {[%clk 0:04:57.5]} 4. Nc3
{[%clk 0:04:53.5]} 4... O-O {[%clk 0:04:56.9]} 5. d4 {[%clk 0:04:52.4]} 5... d6
{[%clk 0:04:56.4]} 6. h3 {[%clk 0:04:51.8]} 6... a5 {[%clk 0:04:54.7]} 7. Nf3
{[%clk 0:04:46.4]} 7... Na6 {[%clk 0:04:54.3]} 8. O-O {[%clk 0:04:44.7]} 8...
Nd7 {[%clk 0:04:52.1]} 9. e4 {[%clk 0:04:43.2]} 9... e5 {[%clk 0:04:51.1]} 10.
Be3 {[%clk 0:04:42.2]} 10... c5 {[%clk 0:04:48.8]} 11. dxe5 {[%clk 0:04:35.6]}
11... Nxe5 {[%clk 0:04:41.5]} 12. Nxe5 {[%clk 0:04:34.1]} 12... Bxe5 {[%clk
0:04:40.3]} 13. Nb5 {[%clk 0:04:31.3]} 13... Bxb2 {[%clk 0:04:32.1]} 14. Bh6
{[%clk 0:04:19]} 14... Bg7 {[%clk 0:04:12.1]} 15. Bxg7 {[%clk 0:04:17.2]} 15...
Kxg7 {[%clk 0:04:11.7]} 16. Nxd6 {[%clk 0:04:16.1]} 16... Qc7 {[%clk 0:04:03.1]}
17. Qd5 {[%clk 0:04:03.2]} 17... Be6 {[%clk 0:03:57.5]} 18. Qe5+ {[%clk
0:03:59.7]} 18... Kg8 {[%clk 0:03:51.3]} 19. Rab1 {[%clk 0:03:57.6]} 19... Rab8
{[%clk 0:03:37.6]} 20. Rfd1 {[%clk 0:03:55]} 20... Nb4 {[%clk 0:02:59.4]} 21. a3
{[%clk 0:03:52.8]} 21... Nc6 {[%clk 0:02:57.9]} 22. Qg5 {[%clk 0:03:48.3]} 22...
Nd4 {[%clk 0:02:54.9]} 23. e5 {[%clk 0:03:44.4]} 23... Qd7 {[%clk 0:02:02]} 24.
Ne4 {[%clk 0:03:41]} 24... Qc8 {[%clk 0:01:45.8]} 25. Nf6+ {[%clk 0:03:38.5]}
25... Kh8 {[%clk 0:01:44.5]} 26. Qh6 {[%clk 0:03:36.7]} 1-0

[Event "Live Chess"]
[Site "Chess.com"]
[Date "2024.06.01"]
[Round "-"]
[White "MagnersCarlsberg2870"]
[Black "koekoekoe"]
[Result "0-1"]
[WhiteElo "1756"]
[BlackElo "1962"]
[TimeControl "300"]
[EndTime "15:43:46 PDT"]
[Termination "koekoekoe won by resignation"]

1. d4 {[%clk 0:04:57.8]} 1... d5 {[%clk 0:04:59.9]} 2. e3 {[%clk 0:04:56.6]}
2... Nf6 {[%clk 0:04:59.5]} 3. Bd3 {[%clk 0:04:55.7]} 3... Bg4 {[%clk
0:04:58.6]} 4. f3 {[%clk 0:04:54.4]} 4... Bh5 {[%clk 0:04:57.9]} 5. Ne2 {[%clk
0:04:53.5]} 5... e6 {[%clk 0:04:57.4]} 6. Ng3 {[%clk 0:04:52.5]} 6... Bg6 {[%clk
0:04:56.2]} 7. Nd2 {[%clk 0:04:50.7]} 7... c5 {[%clk 0:04:55.5]} 8. Bxg6 {[%clk
0:04:48.9]} 8... hxg6 {[%clk 0:04:54.3]} 9. c3 {[%clk 0:04:47.4]} 9... Nc6
{[%clk 0:04:52.7]} 10. Qb3 {[%clk 0:04:45.3]} 10... Qb6 {[%clk 0:04:51.2]} 11.
Qxb6 {[%clk 0:04:43]} 11... axb6 {[%clk 0:04:51.1]} 12. b3 {[%clk 0:04:28.2]}
12... cxd4 {[%clk 0:04:40.4]} 13. exd4 {[%clk 0:04:20.4]} 13... Ba3 {[%clk
0:04:36.7]} 14. Bxa3 {[%clk 0:04:18.2]} 14... Rxa3 {[%clk 0:04:36.6]} 15. h3
{[%clk 0:04:14]} 15... Kd7 {[%clk 0:04:31.5]} 16. O-O {[%clk 0:04:12.7]} 16...
Rha8 {[%clk 0:04:30.4]} 17. c4 {[%clk 0:03:54.2]} 17... Rxa2 {[%clk 0:04:24.7]}
18. Rxa2 {[%clk 0:03:53.1]} 18... Rxa2 {[%clk 0:04:24.6]} 19. Rd1 {[%clk
0:03:49.3]} 19... Nxd4 {[%clk 0:04:20.9]} 20. Nde4 {[%clk 0:03:37.6]} 20... Nxb3
{[%clk 0:03:46.3]} 21. Nxf6+ {[%clk 0:03:33.8]} 21... gxf6 {[%clk 0:03:46.2]}
22. cxd5 {[%clk 0:03:32.8]} 22... Ke7 {[%clk 0:03:41.4]} 23. d6+ {[%clk
0:03:28.3]} 23... Kd7 {[%clk 0:03:40.4]} 24. Ne4 {[%clk 0:03:27.6]} 24... Ra1
{[%clk 0:03:32.7]} 25. Nxf6+ {[%clk 0:03:21.5]} 25... Kd8 {[%clk 0:03:29.3]} 26.
Rxa1 {[%clk 0:03:14.8]} 26... Nxa1 {[%clk 0:03:29.2]} 27. Kf2 {[%clk 0:03:08.4]}
27... Nb3 {[%clk 0:03:22.1]} 28. Ke3 {[%clk 0:03:04.3]} 28... Nc5 {[%clk
0:03:19.4]} 29. Kd4 {[%clk 0:02:57.3]} 29... Nd7 {[%clk 0:03:18.7]} 30. Ne4
{[%clk 0:02:46.4]} 30... Nf8 {[%clk 0:03:10.1]} 31. Kc4 {[%clk 0:02:43.9]} 31...
Kd7 {[%clk 0:03:09.4]} 32. Kb5 {[%clk 0:02:41.9]} 32... f5 {[%clk 0:03:03.4]}
33. Nf6+ {[%clk 0:02:35.4]} 33... Kxd6 {[%clk 0:03:02.6]} 34. Kxb6 {[%clk
0:02:34.6]} 34... Nd7+ {[%clk 0:02:54.8]} 35. Nxd7 {[%clk 0:02:23.6]} 35... Kxd7
{[%clk 0:02:54.7]} 36. Kxb7 {[%clk 0:02:22.9]} 36... e5 {[%clk 0:02:53.2]} 37.
Kb6 {[%clk 0:02:18]} 37... e4 {[%clk 0:02:52.7]} 0-1